[Event "Titled Tuesday Blitz September 27 Late 2022"]
[White "Van Foreest, Jorden"]
[Black "Nakamura, Hikaru"]
[WhiteFideId "1039784"]
[BlackFideId "2016192"]
[WhiteElo "2649"]
[BlackElo "2850"]
[Result "0-1"]
[Round "07"]
[TimeControl "180+1"]
[Date "2022.09.27"]
[WhiteClock "0:00:04"]
[BlackClock "0:00:07"]

1. e4 {[%clk 0:03:00]}  g6 {[%clk 0:02:56]} 2. d4 {[%clk 0:03:00]}  Bg7 {[%clk 0:02:57]} 3. Nf3 {[%clk 0:02:52]}  Nf6 {[%clk 0:02:46]} 4. e5 {[%clk 0:02:50]}  Nd5 {[%clk 0:02:46]} 5. c4 {[%clk 0:02:50]}  Nb6 {[%clk 0:02:47]} 6. c5 {[%clk 0:02:45]}  Nd5 {[%clk 0:02:47]} 7. Bc4 {[%clk 0:02:46]}  c6 {[%clk 0:02:47]} 8. Nc3 {[%clk 0:02:40]}  Nxc3 {[%clk 0:02:39]} 9. bxc3 {[%clk 0:02:41]}  b6 {[%clk 0:02:38]} 10. Ng5 {[%clk 0:02:35]}  O-O {[%clk 0:02:38]} 11. Qf3 {[%clk 0:02:33]}  Qe8 {[%clk 0:02:38]} 12. h4 {[%clk 0:02:33]}  d5 {[%clk 0:02:32]} 13. cxd6 {[%clk 0:02:15]}  exd6 {[%clk 0:02:32]} 14. h5 {[%clk 0:02:15]}  d5 {[%clk 0:02:30]} 15. Bd3 {[%clk 0:02:03]}  h6 {[%clk 0:02:04]} 16. Qg3 {[%clk 0:01:38]}  hxg5 {[%clk 0:00:57]} 17. h6 {[%clk 0:01:39]}  Bf6 {[%clk 0:00:55]} 18. Kf1 {[%clk 0:01:21]}  Be7 {[%clk 0:00:53]} 19. Rh5 {[%clk 0:00:40]}  Ba6 {[%clk 0:00:44]} 20. Bxa6 {[%clk 0:00:35]}  Nxa6 {[%clk 0:00:44]} 21. Bxg5 {[%clk 0:00:28]}  Kh7 {[%clk 0:00:43]} 22. f4 {[%clk 0:00:22]}  Rg8 {[%clk 0:00:34]} 23. Bxe7 {[%clk 0:00:21]}  Qxe7 {[%clk 0:00:33]} 24. Rg5 {[%clk 0:00:20]}  f6 {[%clk 0:00:28]} 25. exf6 {[%clk 0:00:13]}  Qxf6 {[%clk 0:00:28]} 26. Re1 {[%clk 0:00:14]}  Raf8 {[%clk 0:00:29]} 27. Kg1 {[%clk 0:00:12]}  Kh8 {[%clk 0:00:21]} 28. h7 {[%clk 0:00:10]}  Rg7 {[%clk 0:00:21]} 29. Rf1 {[%clk 0:00:08]}  Nc7 {[%clk 0:00:11]} 30. f5 {[%clk 0:00:06]}  Ne6 {[%clk 0:00:07]} 31. Rg4 {[%clk 0:00:03]}  gxf5 {[%clk 0:00:07]} 32. Rxg7 {[%clk 0:00:03]}  Qxg7 {[%clk 0:00:08]} 33. Qd6 {[%clk 0:00:03]}  Qf6 {[%clk 0:00:07]} 34. Re1 {[%clk 0:00:03]}  Ng7 {[%clk 0:00:05]} 35. Qd7 {[%clk 0:00:03]}  f4 {[%clk 0:00:05]} 36. Re7 {[%clk 0:00:03]}  f3 {[%clk 0:00:06]} 37. gxf3 {[%clk 0:00:03]}  Qxf3 {[%clk 0:00:04]} 38. Rxg7 {[%clk 0:00:03]}  Qf1+ {[%clk 0:00:05]} 39. Kh2 {[%clk 0:00:04]}  Rf2+ {[%clk 0:00:05]} 40. Kg3 {[%clk 0:00:04]}  Qg1+ {[%clk 0:00:06]} 41. Kh4 {[%clk 0:00:04]}  Rh2+ {[%clk 0:00:07]} 0-1


[Site "https://www.chess.com"]

[Event "Titled Tuesday Blitz September 27 Late 2022"]
[White "Vlassov, Nikolai"]
[Black "Rego, Pedro Filipe"]
[WhiteFideId "4103360"]
[BlackFideId "1904310"]
[WhiteElo "2324"]
[BlackElo "2125"]
[Result "1-0"]
[Round "07"]
[TimeControl "180+1"]
[Date "2022.09.28"]
[WhiteClock "0:00:04"]
[BlackClock "0:00:01"]

1. e4 {[%clk 0:03:00]}  c5 {[%clk 0:02:59]} 2. c3 {[%clk 0:03:00]}  Nf6 {[%clk 0:02:58]} 3. e5 {[%clk 0:03:01]}  Nd5 {[%clk 0:02:59]} 4. d4 {[%clk 0:03:02]}  cxd4 {[%clk 0:02:59]} 5. cxd4 {[%clk 0:03:02]}  Nc6 {[%clk 0:02:59]} 6. Nc3 {[%clk 0:03:02]}  Nxc3 {[%clk 0:02:56]} 7. bxc3 {[%clk 0:03:03]}  d6 {[%clk 0:02:55]} 8. f4 {[%clk 0:03:04]}  dxe5 {[%clk 0:02:52]} 9. fxe5 {[%clk 0:03:04]}  Bf5 {[%clk 0:02:49]} 10. Nf3 {[%clk 0:03:03]}  e6 {[%clk 0:02:49]} 11. Bd3 {[%clk 0:03:04]}  Bg6 {[%clk 0:02:46]} 12. O-O {[%clk 0:03:03]}  Be7 {[%clk 0:02:47]} 13. Rb1 {[%clk 0:03:03]}  Rb8 {[%clk 0:02:40]} 14. Rb2 {[%clk 0:02:58]}  O-O {[%clk 0:02:30]} 15. Rbf2 {[%clk 0:02:57]}  Na5 {[%clk 0:02:26]} 16. Bxg6 {[%clk 0:02:53]}  fxg6 {[%clk 0:02:27]} 17. g3 {[%clk 0:02:41]}  Nc4 {[%clk 0:02:24]} 18. h4 {[%clk 0:02:40]}  b5 {[%clk 0:02:19]} 19. Bg5 {[%clk 0:02:29]}  Rb7 {[%clk 0:02:01]} 20. Qe2 {[%clk 0:02:12]}  Qd5 {[%clk 0:01:38]} 21. Bxe7 {[%clk 0:02:04]}  Rxe7 {[%clk 0:01:39]} 22. Ng5 {[%clk 0:02:04]}  Rfe8 {[%clk 0:01:37]} 23. Rf4 {[%clk 0:01:52]}  h6 {[%clk 0:01:37]} 24. Ne4 {[%clk 0:01:51]}  b4 {[%clk 0:01:31]} 25. Qf2 {[%clk 0:01:37]}  Kh7 {[%clk 0:01:30]} 26. cxb4 {[%clk 0:01:21]}  Rd8 {[%clk 0:01:22]} 27. Nc5 {[%clk 0:01:12]}  a5 {[%clk 0:01:15]} 28. b5 {[%clk 0:01:05]}  Nb6 {[%clk 0:01:10]} 29. a4 {[%clk 0:01:04]}  Nd7 {[%clk 0:01:05]} 30. Qc2 {[%clk 0:00:58]}  Rc8 {[%clk 0:01:00]} 31. h5 {[%clk 0:00:57]}  Nxc5 {[%clk 0:00:58]} 32. Qxg6+ {[%clk 0:00:45]}  Kg8 {[%clk 0:00:50]} 33. Rf7 {[%clk 0:00:35]}  Qxd4+ {[%clk 0:00:50]} 34. Kh2 {[%clk 0:00:31]}  Rxf7 {[%clk 0:00:40]} 35. Rxf7 {[%clk 0:00:23]}  Qxe5 {[%clk 0:00:37]} 36. b6 {[%clk 0:00:18]}  Ne4 {[%clk 0:00:24]} 37. b7 {[%clk 0:00:18]}  Rc2+ {[%clk 0:00:24]} 38. Kh3 {[%clk 0:00:17]}  Rb2 {[%clk 0:00:15]} 39. Rxg7+ {[%clk 0:00:08]}  Qxg7 {[%clk 0:00:12]} 40. Qxe6+ {[%clk 0:00:08]}  Kh8 {[%clk 0:00:10]} 41. Qe8+ {[%clk 0:00:08]}  Kh7 {[%clk 0:00:10]} 42. Qxe4+ {[%clk 0:00:08]}  Kh8 {[%clk 0:00:10]} 43. Qe8+ {[%clk 0:00:08]}  Kh7 {[%clk 0:00:10]} 44. b8=Q {[%clk 0:00:05]}  Rxb8 {[%clk 0:00:08]} 45. Qxb8 {[%clk 0:00:06]}  Qd7+ {[%clk 0:00:09]} 46. g4 {[%clk 0:00:06]}  Qd3+ {[%clk 0:00:08]} 47. Qg3 {[%clk 0:00:06]}  Qe4 {[%clk 0:00:07]} 48. Qc7+ {[%clk 0:00:06]}  Kh8 {[%clk 0:00:06]} 49. Qd8+ {[%clk 0:00:06]}  Kg7 {[%clk 0:00:05]} 50. Qd7+ {[%clk 0:00:05]}  Kg8 {[%clk 0:00:05]} 51. Qf5 {[%clk 0:00:05]}  Qe3+ {[%clk 0:00:03]} 52. Kh4 {[%clk 0:00:05]}  Qe1+ {[%clk 0:00:03]} 53. Kh3 {[%clk 0:00:05]}  Qh1+ {[%clk 0:00:03]} 54. Kg3 {[%clk 0:00:05]}  Qg1+ {[%clk 0:00:03]} 55. Kf4 {[%clk 0:00:05]}  Qf2+ {[%clk 0:00:02]} 56. Ke5 {[%clk 0:00:05]}  Qc5+ {[%clk 0:00:02]} 57. Kf6 {[%clk 0:00:06]}  Qd4+ {[%clk 0:00:01]} 58. Ke6 {[%clk 0:00:04]} 1-0


[Site "https://www.chess.com"]

[Event "Titled Tuesday Blitz September 27 Late 2022"]
[White "Wadsworth, Matthew J"]
[Black "Kamsky, Gata"]
[WhiteFideId "415804"]
[BlackFideId "2000024"]
[WhiteElo "2294"]
[BlackElo "2666"]
[Result "0-1"]
[Round "07"]
[TimeControl "180+1"]
[Date "2022.09.27"]
[WhiteClock "0:00:01"]
[BlackClock "0:00:18"]

1. c4 {[%clk 0:03:00]}  f5 {[%clk 0:02:55]} 2. g3 {[%clk 0:03:00]}  Nf6 {[%clk 0:02:53]} 3. Bg2 {[%clk 0:03:00]}  g6 {[%clk 0:02:53]} 4. Nc3 {[%clk 0:02:58]}  Bg7 {[%clk 0:02:53]} 5. d3 {[%clk 0:02:58]}  O-O {[%clk 0:02:51]} 6. Rb1 {[%clk 0:02:57]}  a5 {[%clk 0:02:50]} 7. a3 {[%clk 0:02:56]}  e5 {[%clk 0:02:44]} 8. Nf3 {[%clk 0:02:55]}  d6 {[%clk 0:02:43]} 9. O-O {[%clk 0:02:54]}  h6 {[%clk 0:02:42]} 10. b4 {[%clk 0:02:54]}  axb4 {[%clk 0:02:42]} 11. axb4 {[%clk 0:02:54]}  g5 {[%clk 0:02:37]} 12. Nd2 {[%clk 0:02:51]}  Nc6 {[%clk 0:02:33]} 13. b5 {[%clk 0:02:49]}  Nd4 {[%clk 0:02:32]} 14. e3 {[%clk 0:02:46]}  Ne6 {[%clk 0:02:31]} 15. Bb2 {[%clk 0:02:38]}  g4 {[%clk 0:02:26]} 16. Ra1 {[%clk 0:02:37]}  Rb8 {[%clk 0:02:22]} 17. Nd5 {[%clk 0:02:21]}  h5 {[%clk 0:02:03]} 18. f4 {[%clk 0:02:14]}  exf4 {[%clk 0:01:58]} 19. Nxf4 {[%clk 0:02:01]}  Nxf4 {[%clk 0:01:57]} 20. exf4 {[%clk 0:01:53]}  h4 {[%clk 0:01:53]} 21. Re1 {[%clk 0:01:42]}  c6 {[%clk 0:01:32]} 22. Bd4 {[%clk 0:01:31]}  Nh5 {[%clk 0:01:30]} 23. Bf2 {[%clk 0:01:28]}  hxg3 {[%clk 0:01:14]} 24. hxg3 {[%clk 0:01:27]}  Bxa1 {[%clk 0:01:01]} 25. Qxa1 {[%clk 0:01:27]}  Bd7 {[%clk 0:01:01]} 26. Nb3 {[%clk 0:00:55]}  Re8 {[%clk 0:00:56]} 27. Nd4 {[%clk 0:00:47]}  Rxe1+ {[%clk 0:00:39]} 28. Qxe1 {[%clk 0:00:48]}  Qe8 {[%clk 0:00:38]} 29. Qc3 {[%clk 0:00:35]}  Ra8 {[%clk 0:00:36]} 30. bxc6 {[%clk 0:00:33]}  bxc6 {[%clk 0:00:36]} 31. c5 {[%clk 0:00:21]}  d5 {[%clk 0:00:32]} 32. Qb4 {[%clk 0:00:19]}  Qb8 {[%clk 0:00:30]} 33. Qe1 {[%clk 0:00:16]}  Kf7 {[%clk 0:00:28]} 34. Bf1 {[%clk 0:00:13]}  Ra2 {[%clk 0:00:25]} 35. Ne2 {[%clk 0:00:06]}  Qb2 {[%clk 0:00:22]} 36. Bd4 {[%clk 0:00:06]}  Qd2 {[%clk 0:00:23]} 37. Qxd2 {[%clk 0:00:04]}  Rxd2 {[%clk 0:00:22]} 38. Be5 {[%clk 0:00:03]}  Rxd3 {[%clk 0:00:21]} 39. Kf2 {[%clk 0:00:03]}  Rf3+ {[%clk 0:00:21]} 40. Kg2 {[%clk 0:00:02]}  Bc8 {[%clk 0:00:20]} 41. Nd4 {[%clk 0:00:02]}  Rxg3+ {[%clk 0:00:20]} 42. Kf2 {[%clk 0:00:02]}  Bd7 {[%clk 0:00:20]} 43. Be2 {[%clk 0:00:02]}  Rh3 {[%clk 0:00:19]} 44. Bd1 {[%clk 0:00:01]}  Rh2+ {[%clk 0:00:19]} 45. Kg1 {[%clk 0:00:01]}  Ra2 {[%clk 0:00:19]} 46. Bb3 {[%clk 0:00:01]}  Ra5 {[%clk 0:00:18]} 0-1


[Site "https://www.chess.com"]

[Event "Titled Tuesday Blitz September 27 Late 2022"]
[White "Yoo, Christopher Woojin"]
[Black "Boros, Denes"]
[WhiteFideId "30909694"]
[BlackFideId "722340"]
[WhiteElo "2105"]
[BlackElo "2464"]
[Result "1-0"]
[Round "07"]
[TimeControl "180+1"]
[Date "2022.09.27"]
[WhiteClock "0:00:03"]
[BlackClock "0:00:11"]

1. e4 {[%clk 0:03:00]}  c5 {[%clk 0:02:54]} 2. Nf3 {[%clk 0:03:00]}  d6 {[%clk 0:02:51]} 3. d4 {[%clk 0:03:01]}  cxd4 {[%clk 0:02:52]} 4. Nxd4 {[%clk 0:03:01]}  Nf6 {[%clk 0:02:52]} 5. Nc3 {[%clk 0:03:01]}  Bd7 {[%clk 0:02:50]} 6. Bg5 {[%clk 0:02:59]}  Nc6 {[%clk 0:02:49]} 7. Qd2 {[%clk 0:02:59]}  Qb6 {[%clk 0:02:42]} 8. Nb3 {[%clk 0:02:51]}  a6 {[%clk 0:02:41]} 9. O-O-O {[%clk 0:02:46]}  e6 {[%clk 0:02:41]} 10. f3 {[%clk 0:02:29]}  Qc7 {[%clk 0:02:41]} 11. Be3 {[%clk 0:02:14]}  h5 {[%clk 0:02:31]} 12. Na4 {[%clk 0:01:55]}  b5 {[%clk 0:02:11]} 13. Nb6 {[%clk 0:01:53]}  Rb8 {[%clk 0:02:11]} 14. Nxd7 {[%clk 0:01:53]}  Nxd7 {[%clk 0:02:12]} 15. Kb1 {[%clk 0:01:47]}  a5 {[%clk 0:02:03]} 16. Nd4 {[%clk 0:01:40]}  Nxd4 {[%clk 0:01:59]} 17. Bxd4 {[%clk 0:01:41]}  Ne5 {[%clk 0:01:45]} 18. f4 {[%clk 0:01:32]}  Nc6 {[%clk 0:01:42]} 19. Qc3 {[%clk 0:01:11]}  Qb7 {[%clk 0:01:33]} 20. Bxg7 {[%clk 0:00:58]}  b4 {[%clk 0:01:33]} 21. Qf6 {[%clk 0:00:58]}  Be7 {[%clk 0:01:33]} 22. Bxh8 {[%clk 0:00:58]}  Bxf6 {[%clk 0:01:33]} 23. Bxf6 {[%clk 0:00:59]}  b3 {[%clk 0:01:29]} 24. axb3 {[%clk 0:00:50]}  a4 {[%clk 0:01:14]} 25. bxa4 {[%clk 0:00:46]}  e5 {[%clk 0:01:07]} 26. Bb5 {[%clk 0:00:40]}  Kf8 {[%clk 0:01:03]} 27. Rxd6 {[%clk 0:00:31]}  Nd4 {[%clk 0:01:04]} 28. Rd5 {[%clk 0:00:22]}  Qc7 {[%clk 0:00:48]} 29. c3 {[%clk 0:00:13]}  Nxb5 {[%clk 0:00:46]} 30. axb5 {[%clk 0:00:14]}  Qc4 {[%clk 0:00:38]} 31. Rhd1 {[%clk 0:00:10]}  Qxe4+ {[%clk 0:00:36]} 32. R1d3 {[%clk 0:00:10]}  Kg8 {[%clk 0:00:17]} 33. fxe5 {[%clk 0:00:04]}  Rxb5 {[%clk 0:00:13]} 34. Rd8+ {[%clk 0:00:02]}  Kh7 {[%clk 0:00:14]} 35. Kc1 {[%clk 0:00:02]}  Qf4+ {[%clk 0:00:13]} 36. Kc2 {[%clk 0:00:02]}  Qf2+ {[%clk 0:00:12]} 37. Rd2 {[%clk 0:00:03]}  Qf5+ {[%clk 0:00:12]} 38. R8d3 {[%clk 0:00:03]}  Qe4 {[%clk 0:00:11]} 39. b4 {[%clk 0:00:03]}  Qc4 {[%clk 0:00:08]} 40. Kb2 {[%clk 0:00:03]}  Rb6 {[%clk 0:00:07]} 41. Rd4 {[%clk 0:00:03]}  Qc8 {[%clk 0:00:05]} 42. Rd8 {[%clk 0:00:02]}  Qc4 {[%clk 0:00:04]} 43. R2d4 {[%clk 0:00:02]}  Qe2+ {[%clk 0:00:04]} 44. Rd2 {[%clk 0:00:02]}  Qc4 {[%clk 0:00:04]} 45. Rh8+ {[%clk 0:00:02]}  Kg6 {[%clk 0:00:04]} 46. Rg8+ {[%clk 0:00:03]}  Kf5 {[%clk 0:00:04]} 47. Rg5+ {[%clk 0:00:02]}  Ke6 {[%clk 0:00:05]} 48. Rd4 {[%clk 0:00:02]}  Rxb4+ {[%clk 0:00:05]} 49. cxb4 {[%clk 0:00:01]}  Qxd4+ {[%clk 0:00:05]} 50. Kb3 {[%clk 0:00:02]}  Qd5+ {[%clk 0:00:06]} 51. Ka4 {[%clk 0:00:03]}  Qe4 {[%clk 0:00:07]} 52. Ka5 {[%clk 0:00:02]}  Qa8+ {[%clk 0:00:07]} 53. Kb6 {[%clk 0:00:02]}  Qb8+ {[%clk 0:00:08]} 54. Kc5 {[%clk 0:00:03]}  Qc7+ {[%clk 0:00:08]} 55. Kd4 {[%clk 0:00:03]}  Qb7 {[%clk 0:00:09]} 56. Kc3 {[%clk 0:00:02]}  Qd5 {[%clk 0:00:10]} 57. h4 {[%clk 0:00:01]}  Qe4 {[%clk 0:00:10]} 58. g3 {[%clk 0:00:02]}  Qd5 {[%clk 0:00:10]} 59. Kb2 {[%clk 0:00:01]}  Qc4 {[%clk 0:00:11]} 60. Ka3 {[%clk 0:00:02]}  Kd5 {[%clk 0:00:09]} 61. e6+ {[%clk 0:00:01]}  Kxe6 {[%clk 0:00:09]} 62. Bb2 {[%clk 0:00:01]}  Qd3+ {[%clk 0:00:09]} 63. Ka4 {[%clk 0:00:01]}  Qc2+ {[%clk 0:00:10]} 64. Ka3 {[%clk 0:00:02]}  f6 {[%clk 0:00:10]} 65. Rc5 {[%clk 0:00:01]}  Qd3+ {[%clk 0:00:11]} 66. Rc3 {[%clk 0:00:02]}  Qb5 {[%clk 0:00:11]} 67. Kb3 {[%clk 0:00:02]}  Qd5+ {[%clk 0:00:11]} 68. Ka3 {[%clk 0:00:03]}  Qb5 {[%clk 0:00:11]} 69. Bc1 {[%clk 0:00:03]}  Qe2 {[%clk 0:00:11]} 70. Re3+ {[%clk 0:00:03]} 1-0


[Site "https://www.chess.com"]

[Event "Titled Tuesday Blitz September 27 Late 2022"]
[White "Zenin, Dmitry"]
[Black "Jeet, Jain"]
[WhiteFideId "4127897"]
[BlackFideId "5073022"]
[WhiteElo "2215"]
[BlackElo "2055"]
[Result "0-1"]
[Round "07"]
[TimeControl "180+1"]
[Date "2022.09.28"]
[WhiteClock "0:00:07"]
[BlackClock "0:00:13"]

1. d4 {[%clk 0:03:00]}  d5 {[%clk 0:02:57]} 2. c4 {[%clk 0:03:00]}  c6 {[%clk 0:02:57]} 3. cxd5 {[%clk 0:03:00]}  cxd5 {[%clk 0:02:57]} 4. Bf4 {[%clk 0:03:00]}  Nf6 {[%clk 0:02:57]} 5. Nc3 {[%clk 0:02:59]}  Nc6 {[%clk 0:02:57]} 6. e3 {[%clk 0:02:59]}  a6 {[%clk 0:02:57]} 7. Rc1 {[%clk 0:02:59]}  e6 {[%clk 0:02:57]} 8. Bd3 {[%clk 0:02:57]}  Bd6 {[%clk 0:02:56]} 9. Bxd6 {[%clk 0:02:57]}  Qxd6 {[%clk 0:02:57]} 10. f4 {[%clk 0:02:57]}  Bd7 {[%clk 0:02:53]} 11. Nf3 {[%clk 0:02:56]}  O-O {[%clk 0:02:54]} 12. O-O {[%clk 0:02:55]}  b5 {[%clk 0:02:54]} 13. Ne5 {[%clk 0:02:54]}  Na5 {[%clk 0:02:53]} 14. Rf3 {[%clk 0:02:43]}  Nc4 {[%clk 0:02:53]} 15. Qe2 {[%clk 0:02:42]}  Rac8 {[%clk 0:02:50]} 16. Rcf1 {[%clk 0:02:41]}  Bc6 {[%clk 0:02:40]} 17. Rh3 {[%clk 0:02:37]}  g6 {[%clk 0:02:38]} 18. g4 {[%clk 0:02:33]}  Ne4 {[%clk 0:02:32]} 19. Nxe4 {[%clk 0:02:29]}  dxe4 {[%clk 0:02:31]} 20. Bxc4 {[%clk 0:02:13]}  bxc4 {[%clk 0:02:31]} 21. g5 {[%clk 0:02:13]}  Bb5 {[%clk 0:02:18]} 22. a4 {[%clk 0:01:41]}  Bxa4 {[%clk 0:02:13]} 23. Ng4 {[%clk 0:01:41]}  f5 {[%clk 0:02:04]} 24. gxf6 {[%clk 0:01:34]}  c3 {[%clk 0:02:01]} 25. bxc3 {[%clk 0:01:29]}  Bb5 {[%clk 0:02:01]} 26. Qf2 {[%clk 0:01:25]}  Bxf1 {[%clk 0:02:00]} 27. Kxf1 {[%clk 0:01:26]}  Rxc3 {[%clk 0:01:59]} 28. Qh4 {[%clk 0:01:25]}  h5 {[%clk 0:01:43]} 29. Qg5 {[%clk 0:01:25]}  Rc1+ {[%clk 0:01:17]} 30. Kf2 {[%clk 0:01:18]}  Rc2+ {[%clk 0:01:15]} 31. Kg3 {[%clk 0:01:16]}  Kf7 {[%clk 0:00:51]} 32. Ne5+ {[%clk 0:01:11]}  Ke8 {[%clk 0:00:52]} 33. f7+ {[%clk 0:01:04]}  Rxf7 {[%clk 0:00:50]} 34. Qxg6 {[%clk 0:01:04]}  Qf8 {[%clk 0:00:39]} 35. Rxh5 {[%clk 0:01:03]}  Qg7 {[%clk 0:00:32]} 36. Rh8+ {[%clk 0:00:53]}  Ke7 {[%clk 0:00:27]} 37. Rh6 {[%clk 0:00:30]}  Qxg6+ {[%clk 0:00:26]} 38. Rxg6 {[%clk 0:00:30]}  Rh7 {[%clk 0:00:24]} 39. h4 {[%clk 0:00:28]}  a5 {[%clk 0:00:24]} 40. Rg8 {[%clk 0:00:22]}  a4 {[%clk 0:00:22]} 41. Ra8 {[%clk 0:00:22]}  Rg7+ {[%clk 0:00:22]} 42. Kh3 {[%clk 0:00:21]}  Rc1 {[%clk 0:00:19]} 43. Ra7+ {[%clk 0:00:19]}  Kf6 {[%clk 0:00:19]} 44. Ng4+ {[%clk 0:00:17]}  Kg6 {[%clk 0:00:13]} 45. h5+ {[%clk 0:00:17]}  Kh7 {[%clk 0:00:13]} 46. Nf6+ {[%clk 0:00:12]}  Kh6 {[%clk 0:00:13]} 47. Ng4+ {[%clk 0:00:11]}  Rxg4 {[%clk 0:00:13]} 48. Kxg4 {[%clk 0:00:10]}  Rg1+ {[%clk 0:00:14]} 49. Kh4 {[%clk 0:00:07]}  Rh1+ {[%clk 0:00:14]} 50. Kg3 {[%clk 0:00:07]}  Ra1 {[%clk 0:00:13]} 0-1


[Site "https://www.chess.com"]

[Event "Titled Tuesday Blitz September 27 Late 2022"]
[White "Alfaro, William"]
[Black "Murtazin, Ruslan"]
[WhiteFideId "6100457"]
[BlackFideId "24175960"]
[WhiteElo "2096"]
[BlackElo "2212"]
[Result "1/2-1/2"]
[Round "08"]
[TimeControl "180+1"]
[Date "2022.09.28"]
[WhiteClock "0:00:12"]
[BlackClock "0:00:18"]

1. d4 {[%clk 0:02:58]}  Nf6 {[%clk 0:02:57]} 2. Nf3 {[%clk 0:02:56]}  g6 {[%clk 0:02:56]} 3. g3 {[%clk 0:02:55]}  Bg7 {[%clk 0:02:56]} 4. Bg2 {[%clk 0:02:56]}  O-O {[%clk 0:02:57]} 5. O-O {[%clk 0:02:56]}  d6 {[%clk 0:02:58]} 6. Nbd2 {[%clk 0:02:54]}  d5 {[%clk 0:02:53]} 7. c4 {[%clk 0:02:52]}  c6 {[%clk 0:02:46]} 8. h3 {[%clk 0:02:49]}  Re8 {[%clk 0:02:39]} 9. b3 {[%clk 0:02:45]}  a5 {[%clk 0:02:36]} 10. a4 {[%clk 0:02:39]}  Na6 {[%clk 0:02:36]} 11. Bb2 {[%clk 0:02:40]}  Nb4 {[%clk 0:02:35]} 12. Re1 {[%clk 0:02:30]}  Ne4 {[%clk 0:02:06]} 13. Ne5 {[%clk 0:02:11]}  Bxe5 {[%clk 0:01:11]} 14. Nxe4 {[%clk 0:02:01]}  Bg7 {[%clk 0:01:06]} 15. cxd5 {[%clk 0:01:51]}  Nxd5 {[%clk 0:00:49]} 16. Rc1 {[%clk 0:01:47]}  Nb4 {[%clk 0:00:34]} 17. Nc5 {[%clk 0:01:33]}  Qd6 {[%clk 0:00:21]} 18. e4 {[%clk 0:01:28]}  e5 {[%clk 0:00:22]} 19. d5 {[%clk 0:01:18]}  b6 {[%clk 0:00:12]} 20. Nd3 {[%clk 0:01:17]}  cxd5 {[%clk 0:00:12]} 21. Nxb4 {[%clk 0:01:17]}  Qxb4 {[%clk 0:00:11]} 22. exd5 {[%clk 0:01:11]}  Bb7 {[%clk 0:00:08]} 23. Rc7 {[%clk 0:01:08]}  Rab8 {[%clk 0:00:07]} 24. d6 {[%clk 0:00:48]}  Red8 {[%clk 0:00:06]} 25. Rxb7 {[%clk 0:00:40]}  Rxb7 {[%clk 0:00:06]} 26. Bxb7 {[%clk 0:00:40]}  Rxd6 {[%clk 0:00:07]} 27. Qf3 {[%clk 0:00:40]}  f5 {[%clk 0:00:05]} 28. Rd1 {[%clk 0:00:35]}  e4 {[%clk 0:00:03]} 29. Qe2 {[%clk 0:00:32]}  Rxd1+ {[%clk 0:00:03]} 30. Qxd1 {[%clk 0:00:32]}  Bxb2 {[%clk 0:00:04]} 31. Qd8+ {[%clk 0:00:27]}  Kg7 {[%clk 0:00:04]} 32. Bd5 {[%clk 0:00:26]}  Bf6 {[%clk 0:00:02]} 33. Qe8 {[%clk 0:00:20]}  Kh6 {[%clk 0:00:02]} 34. Qf7 {[%clk 0:00:18]}  Qe7 {[%clk 0:00:03]} 35. Qg8 {[%clk 0:00:17]}  Bd4 {[%clk 0:00:03]} 36. Kg2 {[%clk 0:00:14]}  e3 {[%clk 0:00:03]} 37. fxe3 {[%clk 0:00:10]}  Bxe3 {[%clk 0:00:04]} 38. h4 {[%clk 0:00:07]}  Bd4 {[%clk 0:00:04]} 39. Qe6 {[%clk 0:00:07]}  Qxe6 {[%clk 0:00:04]} 40. Bxe6 {[%clk 0:00:08]}  Kg7 {[%clk 0:00:04]} 41. Bc4 {[%clk 0:00:08]}  Kf6 {[%clk 0:00:05]} 42. Kf3 {[%clk 0:00:09]}  h6 {[%clk 0:00:06]} 43. g4 {[%clk 0:00:10]}  Bc5 {[%clk 0:00:06]} 44. gxf5 {[%clk 0:00:09]}  Kxf5 {[%clk 0:00:07]} 45. Bd3+ {[%clk 0:00:08]}  Kf6 {[%clk 0:00:08]} 46. Kg4 {[%clk 0:00:09]}  g5 {[%clk 0:00:08]} 47. hxg5+ {[%clk 0:00:08]}  hxg5 {[%clk 0:00:09]} 48. Bc4 {[%clk 0:00:07]}  Be3 {[%clk 0:00:09]} 49. Bd3 {[%clk 0:00:08]}  Bf4 {[%clk 0:00:10]} 50. Bc4 {[%clk 0:00:08]}  Ke5 {[%clk 0:00:11]} 51. Bg8 {[%clk 0:00:09]}  Kd4 {[%clk 0:00:12]} 52. Bc4 {[%clk 0:00:09]}  Kc3 {[%clk 0:00:12]} 53. Bg8 {[%clk 0:00:10]}  Kb4 {[%clk 0:00:12]} 54. Bc4 {[%clk 0:00:10]}  Kc5 {[%clk 0:00:12]} 55. Bg8 {[%clk 0:00:10]}  b5 {[%clk 0:00:13]} 56. axb5 {[%clk 0:00:09]}  Kxb5 {[%clk 0:00:13]} 57. Bf7 {[%clk 0:00:09]}  Kc5 {[%clk 0:00:14]} 58. Bg8 {[%clk 0:00:09]}  Kb4 {[%clk 0:00:14]} 59. Bf7 {[%clk 0:00:10]}  Kc3 {[%clk 0:00:14]} 60. Be6 {[%clk 0:00:10]}  Bc1 {[%clk 0:00:14]} 61. Bf7 {[%clk 0:00:10]}  Kd4 {[%clk 0:00:15]} 62. Bg8 {[%clk 0:00:10]}  Kc5 {[%clk 0:00:15]} 63. Bf7 {[%clk 0:00:11]}  Kb4 {[%clk 0:00:16]} 64. Bg8 {[%clk 0:00:11]}  Kc5 {[%clk 0:00:16]} 65. Bf7 {[%clk 0:00:11]}  Kb4 {[%clk 0:00:17]} 66. Bg8 {[%clk 0:00:12]}  Kc5 {[%clk 0:00:18]} 1/2-1/2


[Site "https://www.chess.com"]